[Event "44th Chess Olympiad Women 2022"]
[Site "Chennai"]
[Date "2022.07.29"]
[Round "1.6"]
[White "Al Maamari, Wafia Darwish"]
[Black "Beydullayeva, Govhar"]
[Result "0-1"]
[WhiteElo "1841"]
[BlackElo "2390"]
[Annotator "TA"]
[PlyCount "106"]
[EventDate "2022.??.??"]
[TimeControl "60"]

{[%evp 20,106,42,52,63,52,64,75,94,91,70,39,68,52,50,42,47,16,29,0,0,-12,0,0,0,
0,0,0,0,0,0,0,0,0,0,0,0,0,2,6,18,0,0,0,0,0,0,0,0,0,2,-85,-82,-82,-98,-108,-81,
-86,-80,-88,-81,-82,-85,-110,-110,-160,-114,-285,-227,-226,-227,-281,-259,-230,
-207,-364,-370,-1365,-1331,-29959,-29941,-5628,-546,-6625,-5937,-6119,-29963,
-4960,-3939]} 1. e4 {[%emt 0:00:05]} c5 {[%emt 0:00:08]} 2. Nf3 {[%emt 0:00:09]
} d6 {[%emt 0:00:07]} 3. d4 {[%emt 0:00:11]} cxd4 {[%emt 0:00:11]} 4. Nxd4 {
[%emt 0:00:08]} Nf6 {[%emt 0:00:32]} 5. Nc3 {[%emt 0:00:10]} Nc6 {[%emt 0:00:
00]} 6. f4 {[%emt 0:03:30]} g6 {[%emt 0:09:57]} 7. Nxc6 {[%emt 0:06:48]} bxc6 {
[%emt 0:00:24]} 8. e5 {[%emt 0:03:27]} dxe5 {[%emt 0:12:07]} 9. Qxd8+ {[%emt 0:
00:00]} Kxd8 {[%emt 0:00:01]} 10. fxe5 {[%emt 0:04:29]} Ng4 {[%emt 0:07:31]}
11. Bf4 {[%emt 0:01:01]} Be6 {[%emt 0:04:44] B71: Sicilian Dragon: 6 f4.} 12.
h3 {[%emt 0:02:53]} g5 {[%emt 0:04:04]} 13. Bxg5 {[%emt 0:02:36]} Nxe5 {
[%emt 0:00:19] White is better.} 14. O-O-O+ {[%emt 0:00:57]} Ke8 {[%emt 0:00:
00] [#]} 15. Ba6 $146 {[%emt 0:02:15]} ({Predecessor:} 15. Bf4 Bg7 16. a3 Nc4
17. Bxc4 Bxc4 18. Rhe1 Bxc3 19. bxc3 Rg8 20. g4 Rg6 21. g5 {0-1 (64) Musienko,
A-Brodsky,Y Kiev 2001}) 15... Bg7 {[%emt 0:07:37]} 16. Rhe1 {[%emt 0:02:43]}
Rd8 {[%emt 0:11:59]} 17. Bf4 {[%emt 0:14:11]} Rxd1+ {[%emt 0:05:18]} 18. Rxd1 {
[%emt 0:00:26]} h5 {[%emt 0:03:35]} 19. Kb1 {[%emt 0:02:56]} Nd7 {[%emt 0:00:
00]} 20. Na4 {[%emt 0:11:21]} Bd5 {[%emt 0:01:57]} 21. Bc8 {[%emt 0:01:20]} Nb6
{[%emt 0:03:31]} 22. Nxb6 {[%emt 0:00:12]} axb6 {[%emt 0:00:00]} 23. Bc7 {
[%emt 0:00:07]} b5 {[%emt 0:00:44]} 24. c4 {[%emt 0:14:43]} bxc4 {[%emt 0:00:
00]} 25. a4 $1 {[%emt 0:00:25][%cal Ya2a4,Ya4a5,Ya5a6]} e6 {[%emt 0:00:00]} 26.
a5 $1 {[%emt 0:01:20] Strongly threatening a6.} Ke7 {[%emt 0:00:28]} (26...
Bxg2 $2 27. a6 Ke7 28. Rd7+ Kf6 29. Bb7 Be4+ 30. Ka1 $18) 27. Bb7 {[%emt 0:01:
09]} Kd7 {[%emt 0:01:31]} (27... Bxg2 $2 28. Bd6+ Kf6 29. a6 $18) 28. Bb6 {
[%emt 0:00:20] a6 is the strong threat.} Be5 $1 {[%emt 0:00:43]} 29. a6 {
[%emt 0:14:51] aiming for a7.} Bb8 {[%emt 0:00:05]} 30. Kc2 {[%emt 0:01:18]} (
30. a7 Bxa7 31. Bxa7 Kc7 $17) 30... Rg8 {[%emt 0:00:46]} 31. g4 {[%emt 0:00:00]
} (31. a7 Bxa7 32. Bxa7 Kc7 $17) 31... hxg4 {[%emt 0:02:37]} 32. hxg4 {[%emt 0:
00:04]} ({Not} 32. a7 $2 Bxa7 $1 33. Bxa7 gxh3 $19) 32... Rxg4 {[%emt 0:02:23]}
33. a7 {[%emt 0:00:36]} Bxa7 {[%emt 0:00:03]} 34. Bxa7 {[%emt 0:00:05]} c3 {
[%emt 0:01:47]} 35. bxc3 {[%emt 0:01:18]} ({Much worse is} 35. Kxc3 Kc7 36. Rd4
Rg3+ 37. Rd3 Rg4 $17) (35. Bd4 $11 {keeps the balance.}) 35... Kc7 $17 {
[%emt 0:00:10]} 36. Bxc6 {[%emt 0:01:18]} Kxc6 {[%emt 0:00:14] Endgame KRB-KRB}
37. Bd4 {[%emt 0:00:32]} Re4 {[%emt 0:01:37]} 38. Rf1 {[%emt 0:03:06]} f5 {
[%emt 0:01:30]} 39. Kd3 {[%emt 0:01:12] Inhibits Bc4+.} Rh4 {[%emt 0:00:44]
[%cal Ye6e5]} 40. Re1 {[%emt 0:01:28]} Be4+ {[%emt 0:00:00]} 41. Ke3 {[%emt 0:
30:37]} Kd5 {[%emt 0:30:10] And now ...Rh3+ would win.} 42. Bf6 {[%emt 0:01:14]
} (42. c4+ $142 Kxc4 43. Bf6) 42... Rh3+ {[%emt 0:00:47]} ({Better is} 42...
f4+ 43. Kd2 Rh2+ 44. Re2 Rxe2+ 45. Kxe2 Bh1) 43. Kd2 $2 {[%emt 0:00:49] White
does not recover from this.} (43. Kf2 $17) 43... Rh2+ {[%emt 0:00:00]} 44. Re2
{[%emt 0:00:00] [#]} Rh6 {[%emt 0:00:00]} 45. Bd4 {[%emt 0:00:00]} e5 {[%emt 0:
00:00]} 46. Be3 {[%emt 0:00:00]} Ra6 {[%emt 0:00:00] Hoping for ...f4.} 47. Ke1
$2 {[%emt 0:00:00]} (47. Bf2 {might work better.}) 47... Bd3 $19 {[%emt 0:00:
00]} 48. Rb2 {[%emt 0:00:00]} (48. Rd2 Kc4 49. Rf2) 48... f4 {[%emt 0:00:00]
[%cal Yf5f4,Yf4f3]} 49. Bd2 {[%emt 0:00:00]} Ra1+ {[%emt 0:00:00]} 50. Kf2 {
[%emt 0:00:00]} Rf1+ {[%emt 0:00:00]} 51. Kg2 {[%emt 0:00:00]} e4 {[%emt 0:00:
00] ( -> ...f3+)} 52. Rb8 {[%emt 0:00:00]} f3+ {[%emt 0:00:00]} 53. Kg3 {
[%emt 0:00:00]} Rg1+ {[%emt 0:00:00] Weighted Error Value: White=0.53/Black=0.
04 (flawless)} ({Worse is} 53... f2 54. Be3 $11) 0-1

[Event "44th Chess Olympiad Women 2022"]
[Site "Chennai"]
[Date "2022.07.29"]
[Round "1.6"]
[White "Balajayeva, Khanim"]
[Black "Al Mansouri, Moza"]
[Result "1-0"]
[WhiteElo "2344"]
[BlackElo "1606"]
[Annotator "TA"]
[PlyCount "105"]
[EventDate "2022.??.??"]
[TimeControl "60"]

{[%evp 17,105,-10,25,23,35,26,30,-11,18,18,18,24,26,20,29,22,27,26,30,24,23,0,
0,0,90,90,90,87,97,56,51,58,118,117,113,100,171,172,185,159,210,168,354,288,
389,368,372,356,368,365,295,362,319,337,453,446,585,647,757,681,582,414,404,
387,896,990,983,828,983,983,834,872,930,904,797,607,585,543,1062,1044,1641,
1474,1563,1539,4802,1216,975,943,1219,789]} 1. e4 {[%emt 0:00:03]} c5 {[%emt 0:
00:00]} 2. c3 {[%emt 0:00:23]} Nf6 {[%emt 0:00:10]} 3. e5 {[%emt 0:01:01]} Nd5
{[%emt 0:00:05]} 4. d4 {[%emt 0:06:49]} cxd4 {[%emt 0:00:25]} 5. Qxd4 {[%emt 0:
00:00]} e6 {[%emt 0:00:46]} 6. Nf3 {[%emt 0:00:04]} Nc6 {[%emt 0:00:12]} 7. Qe4
{[%emt 0:00:16]} f5 {[%emt 0:00:41]} 8. Qe2 {[%emt 0:00:04]} Qc7 {[%emt 0:00:
00]} 9. g3 {[%emt 0:02:39]} Nde7 {[%emt 0:01:45]} 10. Na3 {[%emt 0:07:41] B22:
Sicilian: 2 c3.} Ng6 $1 {[%emt 0:02:12]} 11. Nb5 {[%emt 0:08:00]} Qb8 {[%emt 0:
00:00]} 12. Bf4 {[%emt 0:00:56] White has an edge.} Nxf4 {[%emt 0:03:56]} 13.
gxf4 {[%emt 0:00:03] Black should prevent 0-0-0.} a6 {[%emt 0:04:09]} 14. Nbd4
{[%emt 0:01:19]} Nxd4 {[%emt 0:08:09]} 15. Nxd4 {[%emt 0:01:39]} b5 {[%emt 0:
00:00] [#]} 16. Rg1 $146 {[%emt 0:05:04] aiming for Qh5+. White has some
pressure.} ({Predecessor:} 16. Bg2 Bb7 17. O-O Bxg2 18. Kxg2 Qb7+ 19. Qf3 Qxf3+
20. Kxf3 Be7 21. b4 Kf7 22. a4 {½-½ (30) Cunningham,R (2315)-Wolski,T (2320)
California 1997}) 16... g6 {[%emt 0:00:29] Prevents Qh5.} 17. h4 {[%emt 0:11:
37]} b4 {[%emt 0:08:21]} 18. c4 {[%emt 0:04:50]} Qb6 {[%emt 0:01:29]} 19. O-O-O
{[%emt 0:05:21]} Bc5 {[%emt 0:04:11]} 20. Qd2 {[%emt 0:03:33][%cal Yh4h5]} Bxd4
{[%emt 0:07:36]} (20... Bb7 $11) 21. Qxd4 $16 {[%emt 0:00:04]} Qxd4 {[%emt 0:
00:11]} 22. Rxd4 {[%emt 0:00:02]} Bb7 {[%emt 0:01:43]} 23. Bg2 {[%emt 0:05:23]}
Bxg2 {[%emt 0:01:33]} 24. Rxg2 $14 {[%emt 0:00:03] Endgame KRR-KRR} Ke7 {
[%emt 0:02:38] White stays focused until the end.} (24... a5 $14) 25. Kc2 $1
$16 {[%emt 0:03:48]} a5 {[%emt 0:01:59] [#]} 26. Kb3 $1 {[%emt 0:09:25]} Rhb8 {
[%emt 0:03:25] [#]} (26... Rhd8 $16) 27. Ka4 $1 $18 {[%emt 0:02:51]} Rb7 {
[%emt 0:05:17]} 28. Rg3 {[%emt 0:00:37]} Rc8 {[%emt 0:00:00]} (28... Kf7 $16
29. Rdd3 h5) 29. b3 {[%emt 0:01:16]} Rc5 $2 {[%emt 0:01:39]} (29... Kf7 30.
Rgd3 Ke7) 30. Rd6 {[%emt 0:04:57]} Ra7 {[%emt 0:01:47]} 31. h5 {[%emt 0:04:42]}
Kf7 {[%emt 0:00:58]} 32. h6 {[%emt 0:01:01]} Ke7 {[%emt 0:00:00]} 33. Rgd3 {
[%emt 0:00:27]} Rc8 {[%emt 0:01:27]} 34. Rb6 {[%emt 0:03:47] Prevents Rb8.}
Rca8 {[%emt 0:00:36]} 35. Rb5 {[%emt 0:01:26]} Kd8 {[%emt 0:00:00]} 36. Rd6 {
[%emt 0:01:41]} Ke7 {[%emt 0:02:07]} 37. Rdb6 {[%emt 0:00:25]} Kd8 {[%emt 0:05:
15]} 38. Rb8+ {[%emt 0:01:17]} Kc7 {[%emt 0:00:14] [#]} 39. R5b7+ {[%emt 0:01:
32]} Kc6 {[%emt 0:01:54]} 40. Rxa7 {[%emt 0:00:55]} Rxa7 {[%emt 0:00:07] KR-KR}
(40... Rxb8 41. Kxa5 g5 42. fxg5 f4) 41. Rc8+ {[%emt 0:30:42] White is clearly
winning.} Kb6 {[%emt 0:30:54]} 42. Rg8 {[%emt 0:01:07]} Kc6 {[%emt 0:01:41]}
43. Rg7 {[%emt 0:00:30]} Ra8 {[%emt 0:00:00]} 44. Rxh7 {[%emt 0:00:12]} d6 {
[%emt 0:00:31]} 45. Re7 {[%emt 0:00:00]} Rh8 {[%emt 0:00:00]} 46. h7 {[%emt 0:
00:00]} dxe5 {[%emt 0:00:00]} 47. fxe5 {[%emt 0:00:00]} g5 {[%emt 0:00:00]} 48.
Rxe6+ {[%emt 0:00:00]} Kd7 {[%emt 0:00:00]} 49. Rh6 {[%emt 0:00:00]} g4 {
[%emt 0:00:00]} 50. Kxa5 {[%emt 0:00:00] Hoping for Kb6.} f4 {[%emt 0:00:00]}
51. Kxb4 {[%emt 0:00:00]} g3 {[%emt 0:00:00]} 52. fxg3 {[%emt 0:00:00]} fxg3 {
[%emt 0:00:00]} 53. Rg6 {[%emt 0:00:00] Weighted Error Value: White=0.18 (very
precise) /Black=0.32} 1-0

[Event "44th Chess Olympiad Women 2022"]
[Site "Chennai"]
[Date "2022.07.29"]
[Round "1.6"]
[White "Mammadova, Gulnar"]
[Black "Almaini, Aishah Sarhan"]
[Result "1-0"]
[WhiteElo "2380"]
[BlackElo "1615"]
[Annotator "TA"]
[PlyCount "41"]
[EventDate "2022.??.??"]
[TimeControl "60"]

{[%evp 12,41,31,29,64,56,65,66,66,56,55,52,64,57,121,116,112,86,90,108,133,126,
219,147,153,153,839,819,1274,1284,29996,29997]} 1. e4 {[%emt 0:00:03]} e5 {
[%emt 0:00:13]} 2. Nf3 {[%emt 0:00:09]} Nf6 {[%emt 0:00:13]} 3. Nxe5 {[%emt 0:
00:00]} d6 {[%emt 0:00:25]} 4. Nf3 {[%emt 0:00:06]} Nxe4 {[%emt 0:00:12]} 5.
Nc3 {[%emt 0:00:06]} Nf6 {[%emt 0:01:21]} 6. d4 {[%emt 0:00:11]} Be7 {[%emt 0:
00:00]} 7. Bd3 {[%emt 0:00:07]} Bg4 {[%emt 0:05:37] C42: Petroff Defence: 3
Nxe5 and unusual White 3rd moves.} 8. h3 {[%emt 0:00:14] [#]} Bd7 $146 {
[%emt 0:11:30]} ({Predecessor:} 8... Bxf3 9. Qxf3 d5 10. O-O O-O 11. Bg5 c6 12.
Rfe1 Nbd7 13. Re2 Bd6 14. Nd1 Qb6 15. c3 {½-½ (40) Krzyzanowski,M (2514)
-Plat,V (2546) Legnica 2021}) 9. O-O {[%emt 0:02:27]} O-O {[%emt 0:00:18]
White is slightly better.} 10. Ne2 {[%emt 0:04:02]} c5 {[%emt 0:11:59]} 11. d5
{[%emt 0:04:55]} b5 {[%emt 0:03:43] [#] ...c4 is the strong threat.} 12. b3 {
[%emt 0:01:52] Prevents c4.} Nxd5 {[%emt 0:18:55]} (12... Na6 $14) 13. Be4 $16
{[%emt 0:02:05]} ({Don't play} 13. Bxh7+ Kxh7 14. Qxd5 Na6 $14) 13... Nc7 {
[%emt 0:03:16]} 14. Bxa8 {[%emt 0:01:26] White is more active.} Nxa8 {[%emt 0:
00:00]} 15. Bf4 {[%emt 0:03:22]} Qb6 {[%emt 0:02:39]} 16. Qd3 {[%emt 0:05:03]}
Rd8 {[%emt 0:06:36]} (16... Be6 $16 17. a4 b4) 17. Nc3 {[%emt 0:02:00][%cal
Ye2c3,Yc3d5,Yd5e7] Hoping for Nd5.} Nc7 {[%emt 0:03:25]} 18. Rae1 $36 {[%emt 0:
04:04] Keeping Black busy.} Ne6 $2 {[%emt 0:07:34]} (18... Be6 $16) 19. Nd5 $1
$18 {[%emt 0:00:43][%csl Yb6,Ye7]} Nxf4 {[%emt 0:01:15]} 20. Nxe7+ {[%emt 0:00:
53]} ({Weaker is} 20. Nxb6 Nxd3 21. Rxe7 axb6 $11) 20... Kh8 {[%emt 0:01:46] 
[#]} 21. Ng5 $1 {[%emt 0:01:03][%csl Yf7,Yh7] Weighted Error Value: White=0.07
(flawless) /Black=0.62} 1-0

[Event "44th Chess Olympiad Women 2022"]
[Site "Chennai"]
[Date "2022.07.29"]
[Round "1.6"]
[White "Rouda Essa, Alserkal"]
[Black "Fataliyeva, Ulviyya"]
[Result "0-1"]
[WhiteElo "1874"]
[BlackElo "2372"]
[Annotator "ChessBase"]
[PlyCount "65"]
[EventDate "2022.??.??"]
[TimeControl "60"]

1. e4 {[%emt 0:00:03]} e6 {[%emt 0:00:04]} 2. d4 {[%emt 0:00:04]} d5 {[%emt 0:
00:00]} 3. Nd2 {[%emt 0:00:05]} c5 {[%emt 0:00:04]} 4. Ngf3 {[%emt 0:00:14]}
Nc6 {[%emt 0:00:51]} 5. exd5 {[%emt 0:03:51]} exd5 {[%emt 0:00:26]} 6. dxc5 {
[%emt 0:04:29]} Bxc5 {[%emt 0:00:28]} 7. Nb3 {[%emt 0:03:20]} Bb6 {[%emt 0:00:
00]} 8. Bg5 {[%emt 0:06:12]} Nf6 {[%emt 0:02:51]} 9. Bd3 {[%emt 0:04:54]} O-O {
[%emt 0:00:32]} 10. O-O {[%emt 0:00:24]} Bg4 {[%emt 0:01:36]} 11. Be2 {[%emt 0:
00:00]} Re8 {[%emt 0:04:29]} 12. Nfd4 {[%emt 0:08:56]} Bxe2 {[%emt 0:06:21]}
13. Nxe2 {[%emt 0:01:27]} Qd6 {[%emt 0:07:32]} 14. Bf4 {[%emt 0:17:24]} Qb4 {
[%emt 0:06:26]} 15. Bg3 {[%emt 0:13:03]} h5 {[%emt 0:00:15]} 16. c3 {[%emt 0:
00:00]} Qg4 {[%emt 0:12:52]} 17. Nf4 {[%emt 0:03:48]} Qg5 {[%emt 0:01:16]} 18.
Nd2 {[%emt 0:02:02]} Qh6 {[%emt 0:08:18]} 19. Nf3 {[%emt 0:05:23]} Rad8 {
[%emt 0:00:13]} 20. Nh3 {[%emt 0:01:48]} Ne4 {[%emt 0:03:35]} 21. Bf4 {[%emt 0:
00:00]} Qg6 {[%emt 0:02:52]} 22. Nd4 {[%emt 0:01:08]} Nxd4 {[%emt 0:02:34]} 23.
cxd4 {[%emt 0:00:08]} Nf6 {[%emt 0:01:05]} 24. a4 {[%emt 0:03:41]} a6 {[%emt 0:
00:00]} 25. Ra3 {[%emt 0:02:23]} Qg4 {[%emt 0:02:53]} 26. Qd2 {[%emt 0:02:59]}
Re4 {[%emt 0:12:18]} 27. Rd3 {[%emt 0:05:55]} Qe2 {[%emt 0:00:00]} 28. Qc3 {
[%emt 0:00:52]} Rde8 {[%emt 0:00:00]} 29. Be3 {[%emt 0:00:30]} Ba5 {[%emt 0:00:
00]} 30. Qb3 {[%emt 0:00:32]} Ng4 {[%emt 0:01:52]} 31. Nf4 {[%emt 0:00:32]}
Rxf4 {[%emt 0:00:12]} 32. Qxd5 {[%emt 0:00:27]} Qxd3 {[%emt 0:00:33]} 33. Qxa5
{[%emt 0:00:31]} 0-1

[Event "44th Chess Olympiad Women 2022"]
[Site "Chennai"]
[Date "2022.07.29"]
[Round "1.7"]
[White "Abrahamyan, Tatev"]
[Black "Alvarado Perez, Coralys M."]
[Result "1-0"]
[WhiteElo "2291"]
[BlackElo "1471"]
[Annotator "NA"]
[PlyCount "51"]
[EventDate "2022.??.??"]
[TimeControl "60"]

1. e4 {[%emt 0:00:03]} d5 {[%emt 0:02:04]} 2. exd5 {[%emt 0:00:24]} Qxd5 {
[%emt 0:00:10]} 3. Nc3 {[%emt 0:00:17]} Qe5+ {[%emt 0:00:47]} 4. Be2 {[%emt 0:
00:00]} c6 {[%emt 0:01:29]} 5. d4 {[%emt 0:01:28]} Qc7 {[%emt 0:01:13]} 6. Nf3
{[%emt 0:01:09]} Bf5 {[%emt 0:01:25]} 7. Ne5 {[%emt 0:04:41]} Nd7 {[%emt 0:00:
00]} 8. Bf4 {[%emt 0:05:28]} Nxe5 {[%emt 0:02:01]} 9. Bxe5 {[%emt 0:01:56]} Qd7
{[%emt 0:04:01]} 10. d5 {[%emt 0:04:34]} e6 {[%emt 0:12:41]} 11. dxc6 {[%emt 0:
00:00]} Qxd1+ {[%emt 0:00:51]} 12. Rxd1 {[%emt 0:00:03]} bxc6 {[%emt 0:00:17]}
13. Nb5 {[%emt 0:14:45]} Bb4+ {[%emt 0:07:21]} 14. c3 {[%emt 0:02:20]} cxb5 {
[%emt 0:06:06]} 15. Bxg7 {[%emt 0:04:01]} Bxc3+ {[%emt 0:12:09]} 16. bxc3 {
[%emt 0:00:46]} f6 {[%emt 0:01:08]} 17. Bxh8 {[%emt 0:03:43]} Kf7 {[%emt 0:00:
00]} 18. g4 {[%emt 0:02:31]} Be4 {[%emt 0:02:01]} 19. f3 {[%emt 0:00:14]} Bc6 {
[%emt 0:03:30]} 20. g5 {[%emt 0:01:38]} fxg5 {[%emt 0:01:18]} 21. Rg1 {[%emt 0:
00:00]} Ne7 {[%emt 0:02:07]} 22. Bd4 {[%emt 0:00:15]} Rg8 {[%emt 0:03:13]} 23.
Bxa7 {[%emt 0:02:03]} Nf5 {[%emt 0:00:56]} 24. Bc5 {[%emt 0:01:54]} h6 {
[%emt 0:01:02]} 25. f4 {[%emt 0:01:33]} gxf4 {[%emt 0:03:52]} 26. Bh5+ {
[%emt 0:00:49]} 1-0

[Event "44th Chess Olympiad Women 2022"]
[Site "Chennai"]
[Date "2022.07.29"]
[Round "1.7"]
[White "Comas Colon, Rinelly M."]
[Black "Zatonskih, Anna"]
[Result "0-1"]
[WhiteElo "1585"]
[BlackElo "2383"]
[Annotator "TA"]
[PlyCount "120"]
[EventDate "2022.??.??"]
[TimeControl "60"]

{[%evp 9,120,-18,-11,-26,-14,-27,-18,-21,-26,-28,-13,-12,0,-15,12,0,0,-5,0,-4,
3,7,3,5,2,0,0,0,0,0,0,-24,-12,-42,-37,-49,-33,-71,-33,-27,-24,-33,-25,-35,-4,
-7,-8,-62,-61,-58,-57,-57,-64,-60,-58,-76,-70,-79,-70,-78,-67,-72,-58,-72,-65,
-53,-3,-4,-9,-94,-85,-85,-85,-85,-79,-94,-94,-131,-119,-111,-116,-108,-95,-118,
-122,-131,-89,-89,-89,-97,-97,-290,-140,-129,-126,-349,-94,-94,-94,-262,-245,
-234,-22,-29,-29,-181,-94,-94,-31,-80,0,-5077,-4964]} 1. c4 {[%emt 0:00:11]} e5
{[%emt 0:00:13]} 2. Nc3 {[%emt 0:00:31]} Nf6 {[%emt 0:06:01]} 3. e4 {[%emt 0:
00:00]} Bc5 {[%emt 0:09:56]} 4. g3 {[%emt 0:06:57]} Nc6 {[%emt 0:06:06][%cal
Yb8c6,Yc6d4,Yd4e2]} 5. Bg2 {[%emt 0:04:31]} O-O {[%emt 0:02:53]} 6. h3 {
[%emt 0:07:49] A25: English Opening vs King's Indian with ...Nc6 but without
early d3.} d6 {[%emt 0:04:52]} 7. d3 {[%emt 0:07:03]} Nd4 {[%emt 0:19:15]} 8.
Nge2 {[%emt 0:03:13] The position is equal.} c6 {[%emt 0:00:50] [#]} 9. a3 $146
{[%emt 0:02:52]} ({Predecessor:} 9. O-O a6 10. Kh2 b5 11. f4 Nd7 12. f5 Nb6 13.
cxb5 axb5 14. Nxd4 Bxd4 15. f6 Bxc3 16. bxc3 gxf6 {0-1 (37) Urbanc,P (2278)
-Muha,M (2252) Topusko 2017}) 9... Nxe2 {[%emt 0:03:37]} 10. Qxe2 {[%emt 0:00:
00]} Re8 {[%emt 0:00:21]} 11. Be3 {[%emt 0:04:09]} Be6 {[%emt 0:05:40]} 12. O-O
{[%emt 0:04:05]} Bd4 {[%emt 0:01:18]} 13. Qd2 {[%emt 0:02:14]} Bxe3 {[%emt 0:
00:00]} 14. Qxe3 {[%emt 0:06:53]} Qd7 {[%emt 0:00:18]} 15. Kh2 {[%emt 0:06:44]}
d5 {[%emt 0:02:11]} 16. cxd5 {[%emt 0:00:45]} (16. exd5 {looks sharper.} cxd5
17. cxd5 Bxd5 18. Nxd5 Nxd5 19. Qc5) 16... cxd5 {[%emt 0:00:02]} 17. Nxd5 {
[%emt 0:02:37]} (17. exd5 {feels hotter.} Bxd5 18. Nxd5 Nxd5 19. Qc5) 17...
Nxd5 {[%emt 0:03:11]} 18. exd5 {[%emt 0:01:02]} Bxd5 {[%emt 0:00:02]} 19. Bxd5
{[%emt 0:01:06]} Qxd5 {[%emt 0:00:02]} 20. Qe4 {[%emt 0:01:29]} Rad8 {[%emt 0:
00:00]} 21. Rad1 {[%emt 0:02:30]} g6 {[%emt 0:03:03]} 22. Rfe1 {[%emt 0:02:24]}
Qb3 {[%emt 0:02:43]} 23. Qe2 {[%emt 0:08:43]} Re6 {[%emt 0:00:41][%cal Ye8e6,
Ye6d6,Yd6d5,Yd5d4] Black is more active.} 24. Rd2 {[%emt 0:00:38]} Rd4 {
[%emt 0:00:20]} 25. Rc1 {[%emt 0:00:32]} Qd5 {[%emt 0:04:44]} 26. Rc4 {[%emt 0:
03:58]} Rd6 {[%emt 0:00:57]} 27. Rxd4 {[%emt 0:00:55]} (27. Rdc2 {seems wilder.
} b6 28. Rxd4 Qxd4 29. Rc7) 27... Qxd4 $11 {[%emt 0:00:01] Endgame KQR-KQR} 28.
f3 {[%emt 0:02:46] Inhibits e4.} (28. Rc2 $11) 28... Kg7 $15 {[%emt 0:04:41]}
29. Kg2 {[%emt 0:00:10]} Rd5 {[%emt 0:01:29]} 30. Qe4 {[%emt 0:01:30]} Qc5 {
[%emt 0:00:22]} 31. b4 {[%emt 0:02:18]} Qd6 {[%emt 0:00:00]} 32. Kf2 {[%emt 0:
02:46]} b6 {[%emt 0:00:29]} 33. h4 {[%emt 0:02:13]} Rd4 {[%emt 0:02:22]} 34.
Qe3 {[%emt 0:00:12]} h5 {[%emt 0:00:09]} 35. Ke2 $1 {[%emt 0:02:20]} Rd5 {
[%emt 0:04:40]} 36. Rc2 {[%emt 0:00:36]} a5 {[%emt 0:00:00]} 37. Rc4 {[%emt 0:
01:02]} axb4 {[%emt 0:02:05]} (37... Qe6 $15) 38. axb4 $11 {[%emt 0:00:50]} Qe6
{[%emt 0:02:40]} 39. f4 {[%emt 0:01:22]} (39. Qe4 $11 {remains equal.}) 39...
Qg4+ {[%emt 0:01:13]} 40. Kd2 {[%emt 0:00:18]} exf4 $1 {[%emt 0:00:48]} 41.
Rxf4 {[%emt 0:30:54]} Qd7 {[%emt 0:30:12]} 42. Re4 {[%emt 0:01:06]} Qa7 {
[%emt 0:00:00]} 43. Rc4 {[%emt 0:00:00]} Qa2+ {[%emt 0:00:00]} 44. Rc2 {
[%emt 0:00:00]} Qb3 {[%emt 0:00:00]} 45. Qe4 {[%emt 0:00:00]} Rd8 {[%emt 0:00:
00]} 46. Qe5+ {[%emt 0:00:00]} Kg8 {[%emt 0:00:00]} 47. Qe4 {[%emt 0:00:00]} b5
{[%emt 0:00:00]} 48. Rc3 {[%emt 0:00:00]} Qb2+ {[%emt 0:00:00]} 49. Rc2 {
[%emt 0:00:00]} Qf6 {[%emt 0:00:00] And now ...Qf2+ would win.} 50. Qe3 {
[%emt 0:00:00] Prevents Qf2+.} (50. Rc5 $17) 50... Rd6 {[%emt 0:00:00]} (50...
Rd5 $19 {is more deadly.} 51. Rc8+ Kh7) 51. Rc8+ $17 {[%emt 0:00:00]} Kg7 {
[%emt 0:00:00] Strongly threatening ...Qb2+.} 52. Rc2 {[%emt 0:00:00] Against
Qb2} (52. Qf4 $17 {keeps fighting.}) 52... Rd4 $2 {[%emt 0:01:55]} (52... Rd5
$19 {and Black stays clearly on top. ...Re5 is the strong threat.} 53. Rc5 Qb2+
54. Kd1 Rd6 55. Qe5+ Qxe5 56. Rxe5 Rxd3+ 57. Kc2 Rxg3 58. Rxb5 Rg4) 53. Rc6 {
[%emt 0:01:44]} Rxd3+ $1 {[%emt 0:01:26]} ({But not} 53... Qxc6 $6 54. Qxd4+ f6
55. Qc5 Qg2+ 56. Kc3 $11) 54. Kxd3 $2 {[%emt 0:00:22]} (54. Qxd3 $17 Qxc6 55.
Qd4+ f6 56. Qc5 Qd7+ 57. Kc2) 54... Qxc6 {[%emt 0:00:02] KQ-KQ} 55. Qd4+ {
[%emt 0:01:36]} Kg8 $2 {[%emt 0:01:27]} ({Black should try} 55... Qf6 $1 $19 {
[%cal Rf6d4] Hoping for ...Qxd4+.} 56. Qe3 Qd6+ 57. Kc3 Kf6 58. Qg5+ Ke6 59.
Qxb5 Qxg3+ 60. Kc2 Qh2+ 61. Kd3 Qxh4 62. Qc6+ Ke7 63. Qc7+ Ke8 64. Qc6+ Kf8)
56. Qd8+ $11 {[%emt 0:01:17]} Kh7 {[%emt 0:00:08]} 57. Qe7 $2 {[%emt 0:00:00]}
(57. Qf8 $1 $11 {and White stays safe.}) 57... Qc4+ {[%emt 0:00:54]} ({Black
should play} 57... Kg7 $1 $19 {White must now prevent ...Qc4+.} 58. Qe5+ Kf8)
58. Ke3 $17 {[%emt 0:00:46]} Kg7 {[%emt 0:00:32] Prevents Qf8+.} (58... Qc3+
$17 59. Ke2 Kg7) 59. Qd6 {[%emt 0:01:11] [#]} (59. Qe5+ $15 Kh7 60. Qd6) 59...
Qc3+ {[%emt 0:01:52]} (59... Qg4 $1 $17) 60. Kf4 $2 {[%emt 0:00:41] [#]} (60.
Ke4 $11) 60... Qf6+ $1 {[%emt 0:00:45] Weighted Error Value: White=0.38/
Black=0.32} 0-1